Workbook

Sheet 2024년 상반기
A1: 순번 | B1: 사업 유형 | C1: 계약명 | D1: 계약일 | E1: 계약금액(원) | F1: 계약 상대자 | G1: 예정가격 | H1: 낙찰률 | I1: 비고
A3: 1 | B3: 용역 | C3: 인프라정보시스템 유지관리 용역 | D3: 2024-01-03 | E3: 312400000 | F3: (주)엠티데이타 | G3: 316439562 | H3: =E3/G3 -> 0.9872343332
A4: 2 | B4: 물품 | C4: 2024년도 해외 기술표준 웹 서비스 연간 구독 (15종) | D4: 2024-01-03 | E4: 333500000 | F4: 한국표준협회 | G4: 411933110 | H4: =E4/G4 -> 0.8095974611
A5: 3 | B5: 물품 | C5: 엔지니어링 SW PIPESTRESS 기술라이선스 구매 | D5: 2024-01-03 | E5: 255854000 | F5: 넥스플로 주식회사 | G5: 315417576 | H5: =E5/G5 -> 0.8111596165
A6: 4 | B6: 용역 | C6: 신한울 3,4호기 기타 내진해석 및 구조설계 용역 | D6: 2024-01-04 | E6: 2312827000 | F6: (주)에스디이엔지 | G6: 3140139996 | H6: =E6/G6 -> 0.73653627
A7: 5 | B7: 용역 | C7: 신한울 3,4호기 옥외설비/냉각수계통 구조물 도면 및 3D 모델 작성용역 | D7: 2024-01-04 | E7: 2164338000 | F7: (주)에스디이엔지 | G7: 2939176908 | H7: =E7/G7 -> 0.7363755459
A8: 6 | B8: 물품 | C8: 공정관리 SW PRIMAVERA P6 기술 라이선스 구매 | D8: 2024-01-04 | E8: 13552000 | F8: 피플쓰리이씨(주) | G8: 14483308 | H8: =E8/G8 -> 0.9356978392
A9: 7 | B9: 용역 | C9: 포탈 시스템 고도화 사업 | D9: 2024-01-04 | E9: 201500000 | F9: 주식회사 와이티아이엔에스 | G9: 209330524 | H9: =E9/G9 -> 0.9625925362
A10: 8 | B10: 용역 | C10: 한울1,2호기 계속운전 PSR 위해도분석 관련 PMP 발생시 침수영향 검토 자문용역 | D10: 2024-01-09 | E10: 34795800 | F10: 주식회사 지티이 | G10: 39723608 | H10: =E10/G10 -> 0.8759476229
A11: 9 | B11: 용역 | C11: 신한울 3,4호기 계측제어분야 상세설계 용역 | D11: 2024-01-11 | E11: 1059800000 | F11: (주)한울전력기술 | G11: 1433301144 | H11: =E11/G11 -> 0.7394119543
A12: 10 | B12: 용역 | C12: 고리 2호기 계속운전 내부침수 평가 용역 | D12: 2024-01-16 | E12: 444940000 | F12: (주)미래와도전 | G12: 522328254 | H12: =E12/G12 -> 0.8518398088
A13: 11 | B13: 물품 | C13: 신한울 3,4호기 종합설계용역 전산장비[입출력 장비]도입 | D13: 2024-01-19 | E13: 387620190 | F13: 에이치제이글로벌 | G13: 481536726 | H13: =E13/G13 -> 0.8049649571
A14: 12 | B14: 용역 | C14: 비전달성을 위한 리더십 역량향상 교육 용역 | D14: 2024-01-22 | E14: 812680000 | F14: 엑스퍼트컨설팅(주) | G14: 949488083 | H14: =E14/G14 -> 0.8559138493
A15: 13 | B15: 용역 | C15: 월성 중수저장시설 설계 전기분야 상세설계 용역 | D15: 2024-01-24 | E15: 160000000 | F15: (주)엔이아이기술 | G15: 178709429 | H15: =E15/G15 -> 0.8953081037
A16: 14 | B16: 용역 | C16: 분당복합 현대화사업 전기분야 상세설계용역 | D16: 2024-01-25 | E16: 597300000 | F16: (주)세종기술단 | G16: 732364683 | H16: =E16/G16 -> 0.8155772853
A17: 15 | B17: 용역 | C17: 월성2,3,4호기 정천현황 조사 및 지하수계 내 핵종거동평가 | D17: 2024-01-29 | E17: 191850000 | F17: 산하이앤씨(주) | G17: 226260125 | H17: =E17/G17 -> 0.8479178556
A18: 16 | B18: 용역 | C18: 함안복합 건설공사 토목 야드분야 상세설계(인허가 포함) 용역 | D18: 2024-01-29 | E18: 477400000 | F18: 두우엔지니어링(주) | G18: 586144553 | H18: =E18/G18 -> 0.8144748553
A19: 17 | B19: 물품 | C19: ANSYS (Enterprise, Premium) 프로그램 구매 | D19: 2024-01-30 | E19: 225500000 | F19: (주)태성에스엔이 | G19: 228907756 | H19: =E19/G19 -> 0.9851129728
A20: 18 | B20: 물품 | C20: 전산소프트웨어(Dymola+Modelon Thermal Power Library) 설치 및 기술지원 | D20: 2024-01-31 | E20: 14218820 | F20: 주식회사 자동차공학연구소 | G20: 14460983 | H20: =E20/G20 -> 0.983254043
A21: 19 | B21: 용역 | C21: 원전 매설배관 간접검사 및 토양성분 분석 | D21: 2024-01-31 | E21: 205700000 | F21: 동양방식(주) | G21: 233107540 | H21: =E21/G21 -> 0.882425339
A22: 20 | B22: 용역 | C22: 수화력 발전소 정착부 취약 발전설비 내진성능평가 용역 | D22: 2024-02-02 | E22: 2358510000 | F22: 두우엔지니어링(주) | G22: 3152332834 | H22: =E22/G22 -> 0.7481792451
A23: 21 | B23: 용역 | C23: 2024~2026 회계연도 외부회계감사 용역 | D23: 2024-02-06 | E23: 1065900000 | F23: 신한회계법인 | G23: 1474089877 | H23: =E23/G23 -> 0.723090238
A24: 22 | B24: 용역 | C24: 보령신복합 1호기 건설사업 종합설계기술용역 손해배상보험(공제) | D24: 2024-02-07 | E24: 322777700 | F24: 엔지니어링공제조합 | G24: 360132462 | H24: =E24/G24 -> 0.8962749379
A25: 23 | B25: 물품 | C25: ARA연구로 전기방식설비(UE246) 공급 계약 | D25: 2024-02-15 | E25: 4977500000 | F25: 프라임코포레이션(주) | G25: 5390000000 | H25: =E25/G25 -> 0.9234693878
A26: 24 | B26: 물품 | C26: WalkInside 프로그램 구매 | D26: 2024-02-15 | E26: 73000000 | F26: 율시스템(주) | G26: 78277188 | H26: =E26/G26 -> 0.9325833217
A27: 25 | B27: 용역 | C27: 분당복합 현대화사업 1Block 건설사업 배관상세설계 및 3D 전산모델 제작 용역 | D27: 2024-02-21 | E27: 291680000 | F27: (주)삼의공영 | G27: 344451940 | H27: =E27/G27 -> 0.8467944759
A28: 26 | B28: 용역 | C28: 분당복합 현대화사업 1Block 공조설비 상세설계용역 | D28: 2024-02-22 | E28: 148225756 | F28: (주)지이엔지니어링 | G28: 174413475 | H28: =E28/G28 -> 0.8498526619
A29: 27 | B29: 용역 | C29: 2024년도 임차 휴양시설 위탁운영 | D29: 2024-02-26 | E29: 616152000 | F29: 주식회사 플러스앤 | G29: 631307525 | H29: =E29/G29 -> 0.9759934352
A30: 28 | B30: 물품 | C30: Windows Server 2022 DataCenter 구매 | D30: 2024-02-26 | E30: 31922000 | F30: 주식회사 월호정보기술 | G30: 36205963 | H30: =E30/G30 -> 0.8816779711
A31: 29 | B31: 용역 | C31: 회계관리시스템 IKOER(SAP ERP) 유지관리 용역 사업 | D31: 2024-02-27 | E31: 1093576000 | F31: (주)에스비티글로벌 | G31: 1143192543 | H31: =E31/G31 -> 0.9565982622
A32: 30 | B32: 물품 | C32: 2024년도 엔지니어링 SW CAESAR 기술라이선스 구매 | D32: 2024-02-27 | E32: 21560891 | F32: 넥스플로 주식회사 | G32: 24312703 | H32: =E32/G32 -> 0.8868158756
A33: 31 | B33: 물품 | C33: 2024년도 엔지니어링 SW DOORS 기술라이선스 구매 | D33: 2024-02-27 | E33: 11543070 | F33: (주)다한테크 | G33: 12079523 | H33: =E33/G33 -> 0.9555898855
A34: 32 | B34: 물품 | C34: 서버접근제어시스템(HI-PSM) 라이선스 추가도입 | D34: 2024-02-28 | E34: 48510000 | F34: 이트론 주식회사 | G34: 48510000 | H34: =E34/G34 -> 1 | I34: 조달청 나라장터
A35: 33 | B35: 물품 | C35: 2024년도 엔지니어링 SW FLOMASTER 사용권 구매 | D35: 2024-02-28 | E35: 21780000 | F35: 플로우마스터코리아 주식회사 | G35: 22033645 | H35: =E35/G35 -> 0.9884882869
A36: 34 | B36: 물품 | C36: 2024년도 엔지니어링 SW PRIMAVERA 기술라이선스 구매 | D36: 2024-02-29 | E36: 22461516 | F36: 피플쓰리이씨(주) | G36: 25099186 | H36: =E36/G36 -> 0.8949101377
A37: 35 | B37: 용역 | C37: 한국전력기술 복지시설 세탁용역 | D37: 2024-02-29 | E37: 135473927 | F37: 크린프로 | G37: 153823069 | H37: =E37/G37 -> 0.8807126778
A38: 36 | B38: 용역 | C38: 분당복합 현대화사업 1 Block건설사업 종합설계기술 건축분야 상세설계용역 | D38: 2024-03-05 | E38: 1031980000 | F38: (주)맥이앤지건축사사무소 | G38: 1383987312 | H38: =E38/G38 -> 0.7456571249
A39: 37 | B39: 물품 | C39: 2024년도 엔지니어링 SW PIPESTRESS 기술라이선스 구매 | D39: 2024-03-06 | E39: 92378880 | F39: 넥스플로 주식회사 | G39: 102763722 | H39: =E39/G39 -> 0.8989444738
A40: 38 | B40: 용역 | C40: S-Oil GTG FEED Study 지형현황 및 노선측량 용역 | D40: 2024-03-07 | E40: 35120000 | F40: (주)해양정보기술 | G40: 39564029 | H40: =E40/G40 -> 0.8876750141
A41: 39 | B41: 물품 | C41: 2024년도 엔지니어링 SW CREO 기술라이선스 구매 | D41: 2024-03-07 | E41: 81439600 | F41: 주식회사 피플러스 | G41: 91157316 | H41: =E41/G41 -> 0.8933962031
A42: 40 | B42: 물품 | C42: 2024년도 엔지니어링 SW MATHCAD 기술라이선스 및 사용권구매 | D42: 2024-03-11 | E42: 137049000 | F42: (주)트리온넷 | G42: 153256734 | H42: =E42/G42 -> 0.8942445557
A43: 41 | B43: 용역 | C43: 고리 2호기 환경피로 감시시스템 구축 용역 손해배상보험(공제) | D43: 2024-03-12 | E43: 16203000 | F43: 농협손해보험(주) | G43: 24408282 | H43: =E43/G43 -> 0.663832055
A44: 42 | B44: 물품 | C44: 2024년도 엔지니어링 SW ABAQUS 기술라이선스 구매 | D44: 2024-03-13 | E44: 101200000 | F44: 주식회사 브이이엔지 | G44: 109954688 | H44: =E44/G44 -> 0.9203791293
A45: 43 | B45: 용역 | C45: 신한울 3,4호기 임시 방호울타리 보안설비설계 용역 | D45: 2024-03-15 | E45: 520003000 | F45: (주)세종기술단 | G45: 631557359 | H45: =E45/G45 -> 0.8233662273
A46: 44 | B46: 용역 | C46: S-Oil GTG FEED Study 세부 지반조사 용역 | D46: 2024-03-15 | E46: 58862000 | F46: (주)인텔리지오 | G46: 67241503 | H46: =E46/G46 -> 0.8753819795
A47: 45 | B47: 용역 | C47: 2024 ~ 2025년도 신입/경력사원 채용대행 용역 | D47: 2024-03-19 | E47: 1693780000 | F47: (주)스카우트 | G47: 1983526087 | H47: =E47/G47 -> 0.8539237326
A48: 46 | B48: 물품 | C48: 거대언어모델 (LLM) 구축을 위한 GPU 서버 도입 | D48: 2024-03-20 | E48: 647155020 | F48: 남경이엔티 | G48: 803953184 | H48: =E48/G48 -> 0.8049660514
A49: 47 | B49: 물품 | C49: 2024년도 엔지니어링 SW LDRA 기술라이선스 구매 | D49: 2024-03-21 | E49: 15556800 | F49: (주)모아소프트 | G49: 16079354 | H49: =E49/G49 -> 0.9675015551
A50: 48 | B50: 용역 | C50: 2024년도 회사 자산 재산종합보험, 가스 및 승강기 사고 배상책임보험 | D50: 2024-03-27 | E50: 28567100 | F50: 삼성화재해상보험(주) | G50: 49575229 | H50: =E50/G50 -> 0.5762373786
A51: 49 | B51: 용역 | C51: APR1000 표준설계인가를 위한 NSSS 및 종합설계분야 인허가문서 개발용역 엔지니어링 손해배상보험(공제) | D51: 2024-03-28 | E51: 472222200 | F51: 엔지니어링공제조합 | G51: 497090166 | H51: =E51/G51 -> 0.949972927
A52: 50 | B52: 용역 | C52: 전북서남권 해상풍력 1단계 확산사업 타당성조사 토목설계 용역 | D52: 2024-03-28 | E52: 258940000 | F52: 세일종합기술공사 | G52: 284391916 | H52: =E52/G52 -> 0.9105040806
A53: 51 | B53: 물품 | C53: 신한울 3,4호기 종합설계용역 전산장비[Workstation PC, SW] 도입 | D53: 2024-04-01 | E53: 268450400 | F53: 팬웨스트에스앤티 | G53: 331991668 | H53: =E53/G53 -> 0.8086058353
A54: 52 | B54: 용역 | C54: 운영허가용 해양조사 및 해양확산모델링 용역 | D54: 2024-04-02 | E54: 773577200 | F54: 지오시스템리서치(주) | G54: 953491580 | H54: =E54/G54 -> 0.8113099436
A55: 53 | B55: 물품 | C55: ARA연구로 전기보수장비(UE236) 공급 계약 | D55: 2024-04-05 | E55: 1099582000 | F55: (주)에스에스테크널러지 | G55: 1120900000 | H55: =E55/G55 -> 0.9809813543
A56: 54 | B56: 용역 | C56: Digital Library 시스템 고도화 ISMP 수립 | D56: 2024-04-08 | E56: 296641290 | F56: 주식회사 티지 | G56: 342363892 | H56: =E56/G56 -> 0.8664502798
A57: 55 | B57: 용역 | C57: 한국전력기술 EAP(근로자 지원 프로그램) 서비스 용역 | D57: 2024-04-11 | E57: 173800000 | F57: 이지앤웰니스주식회사 | G57: 220844584 | H57: =E57/G57 -> 0.7869787742
A58: 56 | B58: 용역 | C58: 새울 3,4호기 내진전문가 현장검증(Seismic Walkdown) | D58: 2024-04-16 | E58: 145970000 | F58: (주)에스디이엔지 | G58: 166609357 | H58: =E58/G58 -> 0.8761212613
A59: 57 | B59: 용역 | C59: 대산 수소전소 복합발전 전환(Add-on) 기본설계용역 손해배상보험(공제) | D59: 2024-04-16 | E59: 18481000 | F59: 농협손해보험(주) | G59: 28001953 | H59: =E59/G59 -> 0.65998968
A60: 58 | B60: 용역 | C60: 전북서남권 해상풍력 1단계 확산사업 풍황분석 및 AEP평가 용역 | D60: 2024-04-18 | E60: 82500000 | F60: 디엔브이코리아 유한회사 | G60: 88964450 | H60: =E60/G60 -> 0.9273367058
A61: 59 | B61: 용역 | C61: 분당복합 현대화사업 1Block 홍보동영상 제작 용역 | D61: 2024-04-18 | E61: 70860000 | F61: 율시스템(주) | G61: 78856320 | H61: =E61/G61 -> 0.8985963332
A62: 60 | B62: 물품 | C62: Power Session 병렬연산패키지 업데이트 및 기술지원 | D62: 2024-04-19 | E62: 58300000 | F62: 캐드아이티코리아 주식회사 | G62: 59282081 | H62: =E62/G62 -> 0.9834337631
A63: 61 | B63: 물품 | C63: 유체계통설계실 Coreform CUBIT 소프트웨어 도입 | D63: 2024-04-19 | E63: 14600000 | F63: 씨에이프로(주) | G63: 15331036 | H63: =E63/G63 -> 0.9523165949
A64: 62 | B64: 용역 | C64: 월성3,4호기 능동형기기 관리계획 검토 자문용역 | D64: 2024-04-22 | E64: 37400000 | F64: (주)피엔이 | G64: 38561615 | H64: =E64/G64 -> 0.9698763913
A65: 63 | B65: 용역 | C65: ISO 19650 건설정보모델링 정보관리 인증 자문용역 | D65: 2024-04-23 | E65: 102404500 | F65: 주식회사 태성에스엔아이 | G65: 105249934 | H65: =E65/G65 -> 0.9729649807
A66: 64 | B66: 용역 | C66: 분당복합 현대화사업 1Block 에너지사용계획 수립용역 | D66: 2024-04-24 | E66: 50987708 | F66: 대일이엔씨기술(주) | G66: 58180928 | H66: =E66/G66 -> 0.8763646396
A67: 65 | B67: 용역 | C67: 고리2호기 안전정지 케이블 화재방호체 설계 관련 토목분야 상세설계 용역 | D67: 2024-04-24 | E67: 183810000 | F67: 두우엔지니어링(주) | G67: 217359744 | H67: =E67/G67 -> 0.8456487693
A68: 66 | B68: 용역 | C68: 고리2호기 안전정지 케이블 화재방호체 설계 전기분야 상세설계 용역 | D68: 2024-04-24 | E68: 161150000 | F68: (주)세종기술단 | G68: 189956391 | H68: =E68/G68 -> 0.8483526095
A69: 67 | B69: 물품 | C69: V3제품군 구매 | D69: 2024-05-07 | E69: 130726500 | F69: (주)비츠코리아 | G69: 130726500 | H69: =E69/G69 -> 1 | I69: 조달청 나라장터
A70: 68 | B70: 용역 | C70: 고성 천연가스 발전사업 설계기술용역 공정안전보고서(PSM) 수행 용역 | D70: 2024-05-08 | E70: 31240000 | F70: 주식회사 비티엑스엔펌 | G70: 35510824 | H70: =E70/G70 -> 0.8797317685
A71: 69 | B71: 물품 | C71: 설계계산용 소프트웨어 Flownex Package 도입 | D71: 2024-05-09 | E71: 61930000 | F71: (주)태성에스엔이 | G71: 64817971 | H71: =E71/G71 -> 0.9554449028
A72: 70 | B72: 용역 | C72: ARA연구로 내진해석 및 토목구조물 설계 | D72: 2024-05-22 | E72: 3120000000 | F72: (주)에스디이엔지 | G72: 4119579290 | H72: =E72/G72 -> 0.7573588904
A73: 71 | B73: 용역 | C73: 신한울3,4호기 건설현장 업무용차량 임차계약 | D73: 2024-05-24 | E73: 13200000 | F73: 에스케이렌터카 주식회사 | G73: 13200000 | H73: =E73/G73 -> 1 | I73: 조달청 나라장터
A74: 72 | B74: 용역 | C74: 2024-2025년 한전기술 글로벌역량 교육용역 | D74: 2024-05-24 | E74: 885500077 | F74: 주식회사 와이비엠넷 | G74: 1156338877 | H74: =E74/G74 -> 0.7657790416
A75: 73 | B75: 용역 | C75: 근골격계질환 유해요인조사 용역 | D75: 2024-05-28 | E75: 17007264 | F75: (주)이누안전보건연구소 | G75: 19465214 | H75: =E75/G75 -> 0.8737260222
A76: 74 | B76: 용역 | C76: 국제표준 품질·안전보건·환경경영시스템 통합인증심사 | D76: 2024-05-30 | E76: 85800000 | F76: 한국표준협회 | G76: 87693684 | H76: =E76/G76 -> 0.9784056968
A77: 75 | B77: 물품 | C77: 2024년 상반기 신입사원 업무용PC 도입 | D77: 2024-06-03 | E77: 79134000 | F77: 주식회사 티원엘에스 | G77: 79134000 | H77: =E77/G77 -> 1 | I77: 조달청 나라장터
A78: 76 | B78: 용역 | C78: 고리2호기 고에너지배관 파단사고 평가 구조분야 용역 | D78: 2024-06-03 | E78: 463320000 | F78: 두우엔지니어링(주) | G78: 573432334 | H78: =E78/G78 -> 0.8079767612
A79: 77 | B79: 물품 | C79: 2024년 상반기 신입사원 인터넷용 PC 도입 | D79: 2024-06-04 | E79: 65568000 | F79: (주)대우루컴즈 | G79: 65568000 | H79: =E79/G79 -> 1 | I79: 조달청 나라장터
A80: 78 | B80: 물품 | C80: 격자형성 SW SMS 기술 라이선스 구매 | D80: 2024-06-04 | E80: 14300000 | F80: 우림텍 | G80: 14610307 | H80: =E80/G80 -> 0.9787610897
A81: 79 | B81: 용역 | C81: 신고리1,2호기 송수전선로 설비개선 관련 MCB(PM11) 내진해석 용역 | D81: 2024-06-14 | E81: 90167000 | F81: 두우엔지니어링(주) | G81: 105473067 | H81: =E81/G81 -> 0.8548817491
A82: 80 | B82: 용역 | C82: 2024-2025년 한전기술 정년퇴직예정자 교육용역 | D82: 2024-06-17 | E82: 311399000 | F82: (주)이음길에이치알 | G82: 368847106 | H82: =E82/G82 -> 0.8442495412
A83: 81 | B83: 용역 | C83: 중수로 해체 방사성폐기물 처리시설 상세설계용역 손해배상보험(공제) | D83: 2024-06-18 | E83: 195555500 | F83: 엔지니어링공제조합 | G83: 207010407 | H83: =E83/G83 -> 0.944665067
A84: 82 | B84: 물품 | C84: 2024년 Adobe Acrobat 사용권(1년차) 구매 | D84: 2024-06-21 | E84: 107500000 | F84: 주식회사 에쓰피케이 | G84: 107500000 | H84: =E84/G84 -> 1 | I84: 조달청 나라장터
A85: 83 | B85: 물품 | C85: 인터넷망 사용자대역 트래픽 복호화 시스템 도입 | D85: 2024-06-24 | E85: 63000000 | F85: (주)어빌리티시스템즈 | G85: 63000000 | H85: =E85/G85 -> 1 | I85: 조달청 나라장터
A86: 84 | B86: 용역 | C86: 2024/25년도 전문직업인 배상책임보험(PI보험) | D86: 2024-06-28 | E86: 760000000 | F86: 엔지니어링공제조합 | G86: 797843096 | H86: =E86/G86 -> 0.9525682478
A87: 85 | B87: 용역 | C87: 고리본부/한빛본부 사용후핵연료 건식저장시설 종합설계용역 토목분야 상세설계용역 | D87: 2024-06-28 | E87: 1985700000 | F87: (주)코네스코퍼레이션 | G87: 2580432051 | H87: =E87/G87 -> 0.7695222973
